fUSD/lending_fUSD_20250118
["ID","MTS","AMOUNT","RATE_DAILY","PERIOD"]
[349440654,1737181859081,-500.0,0.00020499,2]
[349440655,1737181859090,-638.46,0.00020499,2]
[349440656,1737181859100,-638.46,0.00020499,2]
[349440657,1737181859110,-638.46,0.00020499,2]
[349440658,1737181859120,-500.0,0.00020499,2]
[349440659,1737181859130,-500.0,0.00020499,2]
[349440660,1737181859145,-638.46,0.00020499,2]
[349440661,1737181859155,-500.0,0.00020499,2]
[349440662,1737181859165,-638.46,0.00020499,2]
[349440663,1737181859175,-500.0,0.00020499,2]
[349440664,1737181859186,-500.0,0.00020499,2]
[349440665,1737181859196,-500.0,0.00020499,2]
[349440666,1737181859206,-500.0,0.00020499,2]
[349440667,1737181859217,-573.95169205,0.00020499,2]
[349440668,1737181859227,-291.20412934,0.00020499,2]
[349440669,1737181859237,-500.0,0.00020499,2]
[349440670,1737181859246,-500.0,0.00020499,2]
[349440671,1737181859256,-500.0,0.00020499,2]
[349440672,1737181859266,-500.0,0.00020499,2]
[349440673,1737181859276,-500.0,0.00020499,2]
[349440674,1737181859286,-500.0,0.00020499,2]
[349440675,1737181859295,-500.0,0.00020499,2]
[349440676,1737181859306,-500.0,0.00020499,2]
[349440677,1737181859316,-500.0,0.00020499,2]
[349440678,1737181859327,-500.0,0.00020499,2]
[349440679,1737181859336,-536.91,0.00020499,2]
[349440680,1737181859347,-536.91,0.00020499,2]
[349440681,1737181859356,-536.91,0.00020499,2]
[349440682,1737181859493,-500.0,0.00020499,2]
[349440683,1737181859504,-536.91,0.00020499,2]
[349440684,1737181859515,-500.0,0.00020499,2]
[349440685,1737181859525,-536.91,0.00020499,2]
[349440686,1737181859535,-151.0,0.00020499,2]
[349440687,1737181859546,-500.0,0.00020499,2]
[349440688,1737181859556,-151.0,0.00020499,2]
[349440689,1737181859565,-500.0,0.00020499,2]
[349440690,1737181859575,-500.0,0.00020499,2]
[349440691,1737181859584,-151.0,0.00020499,2]
[349440692,1737181859595,-1059921.0,0.000205,2]
[349440693,1737181859605,-13168.15629,0.000205,2]
[349440694,1737181859614,-151.0,0.000205,2]
[349440695,1737181859624,-151.0,0.000205,2]
[349440696,1737181859633,-151.0,0.000205,2]
[349440697,1737181859646,-151.0,0.000205,2]
[349440698,1737181859656,-303.702748,0.000205,2]
[349440699,1737181859665,-303.702748,0.000205,2]
[349440700,1737181859675,-602.109621,0.000205,2]
[349440701,1737181859684,-602.109621,0.000205,2]
[349440702,1737181859693,-151.0,0.000205,2]
[349440703,1737181859703,-151.0,0.000205,2]
[349440704,1737181859713,-151.0,0.000205,2]
[349440705,1737181859723,-237.120185,0.000205,2]
[349440706,1737181859733,-151.0,0.000205,2]
[349440707,1737181859743,-151.0,0.000205,2]
[349440708,1737181859754,-400.0,0.000205,7]
[349440709,1737181859764,-213.573569,0.000205,2]
[349440710,1737181859774,-213.573569,0.000205,2]
[349440711,1737181859783,-462.60829,0.000205,2]
[349440712,1737181859793,-462.60829,0.000205,2]
[349440713,1737181859803,-251.545816,0.000205,2]
[349440714,1737181859813,-5466.313161,0.000205,2]
[349440715,1737181859822,-251.545816,0.000205,2]
[349440716,1737181859832,-5466.313161,0.000205,2]
[349440717,1737181859843,-151.0,0.000205,2]
[349440718,1737181859853,-400.0,0.000205,7]
[349440719,1737181859862,-151.0,0.000205,2]
[349440720,1737181859873,-981.5847795,0.00020501,2]
[349440721,1737181859884,-1094.9446877,0.00020501,2]
[349440722,1737181859894,-4567.6823549,0.00020501,2]
[349440723,1737181859903,-761.4279465,0.00020501,2]
[349440724,1737181859911,-192.3148663,0.00020501,2]
[349440725,1737181859918,-1281.3744503,0.00020501,2]
[349440726,1737181859926,-2002.8247803,0.00020501,2]
[349440727,1737181859935,-626.3668233,0.00020515,2]
[349440728,1737181859941,-930.75102927,0.00020521,2]
[349440729,1737181859948,-150.25,0.00020543,2]
[349440730,1737181859955,-1000.0,0.00020547,14]
[349440731,1737181859964,-400.0,0.000206,7]
[349440732,1737181859974,-400.0,0.000206,7]
[349440733,1737181859984,-202.99342504,0.00020614,2]
[349440734,1737181859993,-166.66,0.00020654,2]
[349440735,1737181860003,-800.0,0.00020664,2]
[349440736,1737181860013,-150.0,0.00020674,2]
[349440737,1737181860022,-150.0,0.00020677,2]
[349440738,1737181860032,-150.0,0.00020679,2]
[349440739,1737181860041,-338.92452611,0.00020683,2]
[349440740,1737181860051,-150.0,0.00020688,2]
[349440741,1737181860061,-728.29,0.00020699,2]
[349440742,1737181860072,-865.53,0.00020699,2]
[349440743,1737181860082,-500.0,0.00020699,2]
[349440744,1737181860092,-652.28,0.00020699,2]
[349440745,1737181860102,-661.19,0.00020699,2]
[349440746,1737181860113,-670.81,0.00020699,2]
[349440747,1737181860123,-732.9,0.00020699,2]
[349440748,1737181860133,-837.06,0.00020699,2]
[349440749,1737181860145,-500.0,0.00020699,2]
[349440750,1737181860155,-153.397885,0.00020699,2]
[349440751,1737181860165,-2165.72,0.00020699,2]
[349440752,1737181860175,-500.0,0.00020699,2]
[349440753,1737181860185,-655.41,0.00020699,2]
[349440754,1737181860195,-500.0,0.00020699,2]
[349440755,1737181860205,-500.0,0.00020699,2]
[349440756,1737181860215,-2779.13,0.00020699,2]
[349440757,1737181860225,-737.18,0.00020699,2]
[349440758,1737181860235,-2921.11,0.00020699,2]
[349440759,1737181860246,-1742.56,0.00020699,2]
[349440760,1737181860255,-1506.09,0.00020699,2]
[349440761,1737181860265,-749.54,0.00020699,2]
[349440762,1737181860275,-500.0,0.00020699,2]
[349440763,1737181860285,-500.0,0.00020699,2]
[349440764,1737181860295,-14252.142265,0.000207,2]
[349440765,1737181860307,-400.0,0.000207,7]
[349440766,1737181860316,-400.0,0.000207,7]
[349440767,1737181860327,-150.0,0.00020707,2]
[349440768,1737181860337,-150.0,0.00020713,2]
[349440769,1737181860348,-3977.0,0.00020726,2]
[349440770,1737181860359,-514.825,0.00020726,2]
[349440771,1737181860369,-567.0,0.00020726,2]
[349440772,1737181860379,-295.048,0.00020726,2]
[349440773,1737181860388,-3900.0,0.00020726,2]
[349440774,1737181860406,-1178.31,0.00020726,2]
[349440775,1737181860416,-152.0,0.00020727,3]
[349440776,1737181860427,-150.0,0.00020728,2]
[349440777,1737181860437,-150.0,0.00020738,2]
[349440778,1737181860448,-150.0,0.00020742,2]
[349440779,1737181860460,-150.0,0.00020745,2]
[349440780,1737181860470,-150.0,0.00020746,2]
[349440781,1737181860481,-150.0,0.00020749,2]
[349440782,1737181860491,-150.0,0.0002075,2]
[349440783,1737181860502,-150.0,0.00020757,2]
[349440784,1737181860513,-202.99342504,0.00020757,2]
[349440785,1737181860523,-150.0,0.00020759,2]
[349440786,1737181860533,-300.0,0.00020771,2]
[349440787,1737181860544,-150.0,0.00020777,2]
[349440788,1737181860554,-150.0,0.0002078,2]
[349440789,1737181860566,-1000.0,0.00020786,2]
[349440790,1737181860576,-150.0,0.00020797,2]
[349440791,1737181860587,-722.0,0.000208,2]
[349440792,1737181860597,-400.0,0.000208,7]
[349440793,1737181860607,-400.0,0.000208,7]
[349440794,1737181860617,-150.0,0.00020803,2]
[349440795,1737181860628,-150.0,0.00020809,2]
[349440796,1737181860637,-150.0,0.00020817,2]
[349440797,1737181860652,-1000.0,0.00020821,14]
[349440798,1737181860661,-150.0,0.00020824,2]
[349440799,1737181860671,-150.0,0.00020827,2]
[349440800,1737181860681,-150.0,0.0002083,2]
[349440801,1737181860691,-421.61103011,0.00020833,2]
[349440802,1737181860701,-200.0,0.00020834,2]
[349440803,1737181860711,-169576.18120432,0.00020834,2]
[349440804,1737181860723,-209.54913066,0.00020835,2]
[349440805,1737181860732,-421.61103011,0.00020835,2]
[349440806,1737181860743,-200.0,0.00020836,2]
[349440807,1737181860753,-200.0,0.00020838,2]
[349440808,1737181860763,-3622.53911916,0.00020838,2]
[349440809,1737181860774,-36040.91440274,0.00020839,2]
[349440810,1737181860784,-200.0,0.0002084,2]
[349440811,1737181860794,-150.0,0.00020842,2]
[349440812,1737181860803,-169576.18120432,0.00020843,2]
[349440813,1737181860813,-18194.74934441,0.00020843,2]
[349440814,1737181860822,-209.54913066,0.00020844,2]
[349440815,1737181860831,-200.0,0.00020844,2]
[349440816,1737181860842,-209.54913066,0.00020844,2]
[349440817,1737181860851,-200.0,0.00020847,2]
[349440818,1737181860861,-209.54913066,0.00020847,2]
[349440819,1737181860871,-872.68489826,0.00020848,2]
[349440820,1737181860880,-36040.91440274,0.0002085,2]
[349440821,1737181860889,-200.0,0.0002085,2]
[349440822,1737181860901,-3780.44113695,0.00020851,2]
[349440823,1737181860910,-150.0,0.00020852,2]
[349440824,1737181860920,-638.88179771,0.00020853,2]
[349440825,1737181860929,-150.0,0.00020857,2]
[349440826,1737181860939,-3780.44113695,0.00020857,2]
[349440827,1737181860949,-1277.76359541,0.00020858,2]
[349440828,1737181860958,-36040.91440274,0.00020858,2]
[349440829,1737181860967,-421.61103011,0.0002086,2]
[349440830,1737181860977,-200.0,0.00020861,2]
[349440831,1737181860986,-200.0,0.00020861,2]
[349440832,1737181860995,-3217.30086353,0.00020861,2]
[349440833,1737181861004,-1277.76359541,0.00020862,2]
[349440834,1737181861014,-150.0,0.00020863,2]
[349440835,1737181861023,-2396.87256039,0.00020866,2]
[349440836,1737181861032,-1277.76359541,0.00020866,2]
[349440837,1737181861042,-169576.18120432,0.0002087,2]
[349440838,1737181861051,-200.0,0.0002087,2]
[349440839,1737181861061,-638.88179771,0.00020872,2]
[349440840,1737181861070,-150.0,0.00020873,2]
[349440841,1737181861079,-3622.53911916,0.00020873,2]
[349440842,1737181861089,-443.9858475,0.00020875,2]
[349440843,1737181861098,-421.61103011,0.00020877,2]
[349440844,1737181861108,-209.54913066,0.00020879,2]
[349440845,1737181861117,-240.07836445,0.0002088,2]
[349440846,1737181861127,-150.0,0.00020881,2]
[349440847,1737181861137,-3932.94789693,0.00020881,2]
[349440848,1737181861150,-3217.30086353,0.00020881,2]
[349440849,1737181861159,-910.2026364,0.00020882,2]
[349440850,1737181861168,-1015.3188623,0.00020882,2]
[349440851,1737181861178,-4130.2298434,0.00020883,2]
[349440852,1737181861187,-577.7436347,0.00020884,2]
[349440853,1737181861196,-192.3148663,0.00020884,2]
[349440854,1737181861205,-239.27140602,0.00020884,3]
[349440855,1737181861214,-1162.2463621,0.00020884,2]
[349440856,1737181861224,-1816.6241836,0.00020884,2]
[349440857,1737181861233,-529.1204461,0.00020885,2]
[349440858,1737181861243,-838.8204934,0.00020885,2]
[349440859,1737181861254,-767.4383504,0.00020885,2]
[349440860,1737181861264,-935.6930368,0.00020885,2]
[349440861,1737181861274,-856.0672114,0.00020885,2]
[349440862,1737181861284,-3692.7773319,0.00020885,2]
[349440863,1737181861295,-3255.3248203,0.00020885,2]
[349440864,1737181861309,-480.4972575,0.00020886,2]
[349440865,1737181861318,-431.8740689,0.00020886,2]
[349440866,1737181861328,-192.3148663,0.00020886,2]
[349440867,1737181861337,-91602.57093996,0.00020888,2]
[349440868,1737181861540,-10800.37682842,0.00020888,2]
[349440869,1737181861609,-1849.73,0.00020495,2]
[349440870,1737181861619,-1371.14689,0.00020888,2]
[349440871,1737181861634,-1006.81239902,0.00020888,2]
[349440872,1737181861654,-1849.73,0.00020497,2]
[349440873,1737181861664,-2856.14331267,0.00020888,2]
[349440874,1737181861812,-500.0,0.00019178,2]
[349440875,1737181861822,-500.0,0.00019178,2]
[349440876,1737181861832,-500.0,0.00019178,2]
[349440877,1737181861841,-500.0,0.00019178,2]
[349440878,1737181861851,-500.0,0.00019991,2]
[349440879,1737181861861,-500.0,0.00019991,2]
[349440880,1737181861870,-500.0,0.00019991,2]
[349440881,1737181861879,-500.0,0.00019992,2]
[349440882,1737181861888,-500.0,0.00019992,2]
[349440883,1737181861899,-500.0,0.00019999,2]
[349440884,1737181861909,-500.0,0.00020495,2]
[349440885,1737181861918,-500.0,0.00020497,2]
[349440886,1737181861928,-500.0,0.00020497,2]
[349440887,1737181861937,-500.0,0.00020498,2]
[349440888,1737181861947,-1849.73,0.00020498,2]
[349440889,1737181861955,-500.0,0.00020498,2]
[349440890,1737181861965,-1849.73,0.00020498,2]
[349440891,1737181861974,-500.0,0.00020498,2]
[349440892,1737181861983,-155.05222177,0.00020499,2]
[349440893,1737181861992,-500.0,0.00020499,2]
[349440894,1737181862001,-1849.73,0.00020499,2]
[349440895,1737181862011,-500.0,0.00020499,2]
[349440896,1737181862020,-500.0,0.00020499,2]
[349440897,1737181862030,-1849.73,0.00020499,2]
[349440898,1737181862040,-500.0,0.00020499,2]
[349440899,1737181862050,-500.0,0.00020499,2]
[349440900,1737181862060,-1849.73,0.00020499,2]
[349440901,1737181862069,-500.0,0.00020499,2]
[349440902,1737181862079,-500.0,0.00020499,2]
[349440903,1737181862088,-1849.73,0.00020499,2]
[349440904,1737181862098,-500.0,0.00020499,2]
[349440905,1737181862108,-500.0,0.00020699,2]
[349440906,1737181862257,-61939.13083425,0.00020888,2]
[349440907,1737181862267,-3217.30086353,0.00020888,2]
[349440908,1737181862277,-1277.76359541,0.00020888,2]
[349440909,1737181862287,-1076.63114401,0.00020888,2]
[349440910,1737181862298,-421.61103011,0.00020888,2]
[349440911,1737181862308,-18194.74934441,0.00020889,2]
[349440912,1737181862318,-3780.44113695,0.00020891,2]
[349440913,1737181862330,-3932.94789693,0.00020891,2]
[349440914,1737181862341,-239.27140601,0.00020892,3]
[349440915,1737181862351,-150.0,0.00020893,2]
[349440916,1737181862362,-443.9858475,0.00020894,2]
[349440917,1737181862374,-3217.30086353,0.00020894,2]
[349440918,1737181862384,-443.9858475,0.00020895,2]
[349440919,1737181862395,-2000.0,0.00020895,2]
[349440920,1737181862405,-2000.0,0.00020895,2]
[349440921,1737181862414,-2000.0,0.00020895,2]
[349440922,1737181862424,-3217.30086353,0.00020896,2]
[349440923,1737181862433,-200.0,0.00020896,2]
[349440924,1737181862443,-200.0,0.00020896,2]
[349440925,1737181862452,-535.78,0.00020897,2]
[349440926,1737181862462,-816.59,0.00020897,2]
[349440927,1737181862473,-508.92,0.00020897,2]
[349440928,1737181862483,-500.0,0.00020897,2]
[349440929,1737181862493,-642.28,0.00020897,2]
[349440930,1737181862502,-905.15,0.00020897,2]
[349440931,1737181862512,-1584.7,0.00020897,2]
[349440932,1737181862522,-550.06,0.00020897,2]
[349440933,1737181862532,-500.0,0.00020897,2]
[349440934,1737181862541,-500.0,0.00020897,2]
[349440935,1737181862551,-500.0,0.00020897,2]
[349440936,1737181862561,-3557.31,0.00020897,2]
[349440937,1737181862570,-547.09,0.00020897,2]
[349440938,1737181862580,-638.46,0.00020897,2]
[349440939,1737181862589,-500.0,0.00020897,2]
[349440940,1737181862598,-536.91,0.00020897,2]
[349440941,1737181862608,-200.0,0.00020897,2]
[349440942,1737181862617,-443.9858475,0.00020897,2]
[349440943,1737181862626,-500.0,0.00020898,2]
[349440944,1737181862635,-500.0,0.00020898,2]
[349440945,1737181862647,-1514.14,0.00020898,2]
[349440946,1737181862656,-500.0,0.00020898,2]
[349440947,1737181862666,-660.65,0.00020898,2]
[349440948,1737181862675,-524.43,0.00020898,2]
[349440949,1737181862684,-693.13,0.00020898,2]
[349440950,1737181862693,-500.0,0.00020898,2]
[349440951,1737181862703,-500.0,0.00020898,2]
[349440952,1737181862712,-500.0,0.00020898,2]
[349440953,1737181862722,-500.0,0.00020898,2]
[349440954,1737181862731,-500.0,0.00020898,2]
[349440955,1737181862741,-500.0,0.00020898,2]
[349440956,1737181862750,-836.95,0.00020898,2]
[349440957,1737181862760,-515.41,0.00020898,2]
[349440958,1737181862770,-1258.98,0.00020898,2]
[349440959,1737181862779,-1720.41,0.00020898,2]
[349440960,1737181862789,-500.0,0.00020898,2]
[349440961,1737181862799,-433.88522993,0.00020898,2]
[349440962,1737181862809,-1091.73,0.00020898,2]
[349440963,1737181862818,-1540.81,0.00020898,2]
[349440964,1737181862828,-1808.9,0.00020898,2]
[349440965,1737181862838,-2055.56,0.00020898,2]
[349440966,1737181862847,-940.37,0.00020898,2]
[349440967,1737181862857,-972.22,0.00020898,2]
[349440968,1737181862867,-537.94,0.00020898,2]
[349440969,1737181862876,-500.0,0.00020898,2]
[349440970,1737181862886,-500.0,0.00020898,2]
[349440971,1737181862898,-500.0,0.00020898,2]
[349440972,1737181862907,-482.45345806,0.00020898,2]
[349440973,1737181862917,-1060.79,0.00020898,2]
[349440974,1737181862927,-4071.85,0.00020898,2]
[349440975,1737181862937,-500.0,0.00020898,2]
[349440976,1737181862946,-500.0,0.00020898,2]
[349440977,1737181862956,-544.87,0.00020898,2]
[349440978,1737181862965,-560.14,0.00020898,2]
[349440979,1737181862975,-532.85,0.00020898,2]
[349440980,1737181862985,-630.74,0.00020898,2]
[349440981,1737181862999,-500.0,0.00020898,2]
[349440982,1737181863009,-500.0,0.00020898,2]
[349440983,1737181863019,-501.48,0.00020898,2]
[349440984,1737181863028,-1000.0,0.00020898,2]
[349440985,1737181863039,-2191.22,0.00020898,2]
[349440986,1737181863049,-648.8,0.00020898,2]
[349440987,1737181863059,-500.0,0.00020898,2]
[349440988,1737181863069,-910.82,0.00020898,2]
[349440989,1737181863079,-500.0,0.00020898,2]
[349440990,1737181863090,-1036.44,0.00020898,2]
[349440991,1737181863101,-500.0,0.00020898,2]
[349440992,1737181863111,-500.0,0.00020898,2]
[349440993,1737181863120,-865.53,0.00020898,2]
[349440994,1737181863130,-1032.98,0.00020898,2]
[349440995,1737181863140,-500.0,0.00020898,2]
[349440996,1737181863154,-500.0,0.00020898,2]
[349440997,1737181863164,-604.75,0.00020898,2]
[349440998,1737181863174,-500.0,0.00020898,2]
[349440999,1737181863184,-652.28,0.00020898,2]
[349441000,1737181863194,-500.0,0.00020898,2]
[349441001,1737181863204,-500.0,0.00020898,2]
[349441002,1737181863214,-500.0,0.00020898,2]
[349441003,1737181863224,-661.19,0.00020898,2]
[349441004,1737181863234,-670.81,0.00020898,2]
[349441005,1737181863244,-500.0,0.00020898,2]
[349441006,1737181863255,-1182.47,0.00020898,2]
[349441007,1737181863264,-743.89,0.00020898,2]
[349441008,1737181863274,-504.22,0.00020898,2]
[349441009,1737181863284,-732.9,0.00020898,2]
[349441010,1737181863295,-837.06,0.00020898,2]
[349441011,1737181863311,-500.0,0.00020898,2]
[349441012,1737181863321,-500.0,0.00020898,2]
[349441013,1737181863331,-2165.72,0.00020898,2]
[349441014,1737181863340,-665.96,0.00020898,2]
[349441015,1737181863352,-500.0,0.00020898,2]
[349441016,1737181863362,-655.41,0.00020898,2]
[349441017,1737181863372,-500.0,0.00020898,2]
[349441018,1737181863383,-500.0,0.00020898,2]
[349441019,1737181863396,-913.83,0.00020898,2]
[349441020,1737181863406,-500.0,0.00020898,2]
[349441021,1737181863416,-500.0,0.00020898,2]
[349441022,1737181863426,-2779.13,0.00020898,2]
[349441023,1737181863435,-737.18,0.00020898,2]
[349441024,1737181863445,-837.27,0.00020898,2]
[349441025,1737181863455,-2921.11,0.00020898,2]
[349441026,1737181863465,-1742.56,0.00020898,2]
[349441027,1737181863476,-1202.88,0.00020898,2]
[349441028,1737181863486,-500.0,0.00020898,2]
[349441029,1737181863496,-1506.09,0.00020898,2]
[349441030,1737181863506,-901.21,0.00020898,2]
[349441031,1737181863516,-904.25,0.00020898,2]
[349441032,1737181863526,-764.09,0.00020898,2]
[349441033,1737181863537,-672.65,0.00020898,2]
[349441034,1737181863547,-500.0,0.00020898,2]
[349441035,1737181863557,-500.0,0.00020898,2]
[349441036,1737181863568,-1065.18,0.00020898,2]
[349441037,1737181863578,-487.19754743,0.00020898,2]
[349441038,1737181863588,-749.54,0.00020898,2]
[349441039,1737181863599,-1603.54,0.00020898,2]
[349441040,1737181863609,-726.82,0.00020898,2]
[349441041,1737181863619,-500.0,0.00020898,2]
[349441042,1737181863629,-677.73,0.00020898,2]
[349441043,1737181863640,-704.6,0.00020898,2]
[349441044,1737181863652,-528.48113481,0.00020898,2]
[349441045,1737181863663,-500.0,0.00020898,2]
[349441046,1737181863673,-790.72,0.00020898,2]
[349441047,1737181863683,-619.9363047,0.00020898,2]
[349441048,1737181863694,-500.0,0.00020898,2]
[349441049,1737181863703,-500.0,0.00020898,2]
[349441050,1737181863714,-500.0,0.00020898,2]
[349441051,1737181863724,-363.89066857,0.00020899,2]
[349441052,1737181863734,-500.0,0.00020899,2]
[349441053,1737181863744,-500.0,0.00020899,2]
[349441054,1737181863754,-151.0,0.00020899,2]
[349441055,1737181863764,-1514.14,0.00020899,2]
[349441056,1737181863774,-1514.14,0.00020899,2]
[349441057,1737181863784,-500.0,0.00020899,2]
[349441058,1737181863794,-500.0,0.00020899,2]
[349441059,1737181863804,-500.0,0.00020899,2]
[349441060,1737181863813,-151.0,0.00020899,2]
[349441061,1737181863823,-660.65,0.00020899,2]
[349441062,1737181863834,-660.65,0.00020899,2]
[349441063,1737181863843,-524.43,0.00020899,2]
[349441064,1737181863853,-524.43,0.00020899,2]
[349441065,1737181863863,-693.13,0.00020899,2]
[349441066,1737181863873,-693.13,0.00020899,2]
[349441067,1737181863883,-303.702748,0.00020899,2]
[349441068,1737181863893,-303.702748,0.00020899,2]
[349441069,1737181863904,-500.0,0.00020899,2]
[349441070,1737181863914,-500.0,0.00020899,2]
[349441071,1737181863924,-500.0,0.00020899,2]
[349441072,1737181863934,-500.0,0.00020899,2]
[349441073,1737181863944,-500.0,0.00020899,2]
[349441074,1737181863954,-500.0,0.00020899,2]
[349441075,1737181863964,-500.0,0.00020899,2]
[349441076,1737181863974,-500.0,0.00020899,2]
[349441077,1737181863984,-500.0,0.00020899,2]
[349441078,1737181863993,-500.0,0.00020899,2]
[349441079,1737181864003,-602.109621,0.00020899,2]
[349441080,1737181864013,-602.109621,0.00020899,2]
[349441081,1737181864023,-500.0,0.00020899,2]
[349441082,1737181864032,-500.0,0.00020899,2]
[349441083,1737181864042,-836.95,0.00020899,2]
[349441084,1737181864051,-836.95,0.00020899,2]
[349441085,1737181864061,-515.41,0.00020899,2]
[349441086,1737181864071,-515.41,0.00020899,2]
[349441087,1737181864082,-151.0,0.00020899,2]
[349441088,1737181864091,-1258.98,0.00020899,2]
[349441089,1737181864102,-1258.98,0.00020899,2]
[349441090,1737181864112,-1720.41,0.00020899,2]
[349441091,1737181864121,-1720.41,0.00020899,2]
[349441092,1737181864131,-500.0,0.00020899,2]
[349441093,1737181864141,-500.0,0.00020899,2]
[349441094,1737181864153,-151.0,0.00020899,2]
[349441095,1737181864163,-151.0,0.00020899,2]
[349441096,1737181864172,-1091.73,0.00020899,2]
[349441097,1737181864182,-1091.73,0.00020899,2]
[349441098,1737181864192,-1540.81,0.00020899,2]
[349441099,1737181864201,-1540.81,0.00020899,2]
[349441100,1737181864211,-1808.9,0.00020899,2]
[349441101,1737181864220,-1808.9,0.00020899,2]
[349441102,1737181864229,-2055.56,0.00020899,2]
[349441103,1737181864239,-2055.56,0.00020899,2]
[349441104,1737181864249,-940.37,0.00020899,2]
[349441105,1737181864258,-940.37,0.00020899,2]
[349441106,1737181864268,-972.22,0.00020899,2]
[349441107,1737181864278,-972.22,0.00020899,2]
[349441108,1737181864287,-537.94,0.00020899,2]
[349441109,1737181864297,-537.94,0.00020899,2]
[349441110,1737181864308,-500.0,0.00020899,2]
[349441111,1737181864318,-500.0,0.00020899,2]
[349441112,1737181864329,-238.21116722,0.00020899,2]
[349441113,1737181864339,-500.0,0.00020899,2]
[349441114,1737181864350,-500.0,0.00020899,2]
[349441115,1737181864360,-1060.79,0.00020899,2]
[349441116,1737181864370,-1060.79,0.00020899,2]
[349441117,1737181864380,-4071.85,0.00020899,2]
[349441118,1737181864390,-4071.85,0.00020899,2]
[349441119,1737181864402,-500.0,0.00020899,2]
[349441120,1737181864412,-500.0,0.00020899,2]
[349441121,1737181864422,-500.0,0.00020899,2]
[349441122,1737181864432,-151.0,0.00020899,2]
[349441123,1737181864442,-500.0,0.00020899,2]
[349441124,1737181864452,-544.87,0.00020899,2]
[349441125,1737181864462,-544.87,0.00020899,2]
[349441126,1737181864472,-201.624022,0.00020899,2]
[349441127,1737181864482,-560.14,0.00020899,2]
[349441128,1737181864492,-560.14,0.00020899,2]
[349441129,1737181864501,-532.85,0.00020899,2]
[349441130,1737181864511,-532.85,0.00020899,2]
[349441131,1737181864521,-630.74,0.00020899,2]
[349441132,1737181864530,-630.74,0.00020899,2]
[349441133,1737181864540,-500.0,0.00020899,2]
[349441134,1737181864550,-451.92,0.00020899,2]
[349441135,1737181864559,-500.0,0.00020899,2]
[349441136,1737181864570,-500.0,0.00020899,2]
[349441137,1737181864581,-501.48,0.00020899,2]
[349441138,1737181864591,-501.48,0.00020899,2]
[349441139,1737181864601,-1000.0,0.00020899,2]
[349441140,1737181864610,-1000.0,0.00020899,2]
[349441141,1737181864621,-2191.22,0.00020899,2]
[349441142,1737181864631,-2191.22,0.00020899,2]
[349441143,1737181864641,-648.8,0.00020899,2]
[349441144,1737181864652,-648.8,0.00020899,2]
[349441145,1737181864662,-500.0,0.00020899,2]
[349441146,1737181864672,-290.34798634,0.00020899,2]
[349441147,1737181864688,-209.65201366,0.00020899,2]
[349441148,1737181864698,-104.06798434,0.00020899,2]
[349441149,1737181864714,-624.74980005,0.00020499,2]
[349441150,1737181864726,-1224.98019995,0.00020499,2]
[349441151,1737181864735,-436.87983208,0.00020899,2]
[349441152,1737181865129,-500.0,0.00019178,2]
[349441153,1737181865139,-500.0,0.00019178,2]